Cogmind - Beta 16 @@@ ROGUE MODE // 2026.01.02 @ 20:09:11 Player: GiggleBox Result: Destroyed by H-88 Terminator with Heavy Machine Gun Performance ------------- Evolutions (8) 4000 Regions Visited (28) 5600 Robots Destroyed (127) 635 Value Destroyed (3016) 3016 Prototype IDs (52) 1040 Alien Tech Used (4) 800 Bonus (6219) 6219 TOTAL SCORE: 21310 Bonus ------- Follower Combat Kills 3617 Network Hubs Disabled 200 Met Data Miner 300 Met Zhirov 300 Built Enhanced Grunts 300 A7 Reached Mainframe 300 Met R17 at Cetus 500 Found Hidden Lab 3000 Friendly Fire -2298 Cogmind --------- Core Integrity 0/1450 Matter 300/300 Energy 100/100 System Corruption 17% Temperature Cool (0) Movement Core (150) Ox2 Location -2/Research Parts ------- > --- POWER (3) -------- (None) > --- PROPULSION (8) --- (None) > --- UTILITY (11) ----- Experimental Optical Array Advanced Signal Interpreter Graphene Brace > --- WEAPON (3) ------- Enhanced Force Lance > --- INVENTORY (5) ---- Assault Drone Bay (0/2) Potential Cannon Warp Cannon Peak State ------------ > --- POWER ------------ Micro Antimatter Reactor Compact Particle Reactor Compact Particle Reactor > --- PROPULSION ------- Cooled Aerolev Unit Gyrokinetic Inverter Combat Gravmag System Improved Linear Gravjet Antigrav Array Antigrav Array > --- UTILITY ---------- Experimental Cooling System Large Storage Unit Experimental Optical Array Advanced Sensor Array Advanced Signal Interpreter Improved Transmission Jammer Advanced Reaction Control System Advanced Cloaking Device Experimental Utility Shielding Medium Regenerative Plating Deep Network Scanner > --- WEAPON ----------- Tachyon Dispersion Ray Enhanced Nova Cannon Enhanced Force Lance > --- INVENTORY -------- Improved Antigrav System Improved Antigrav System Matter Compressor Stasis Canceller Graphene Brace Advanced Force Field Advanced Point Defense System Assault Drone Bay Enhanced Nova Cannon Potential Cannon Warp Cannon [Rating: 191] Favorites ----------- Power Compact Particle Reactor Engine Light Deuterium Engine Power Core Micro Nuclear Core Reactor Compact Particle Reactor Propulsion Improved Flight Unit Treads Light Treads Leg Aluminum Leg Hover Unit Gravmag System Flight Unit Improved Flight Unit Utility Improved Sensor Array Device Improved Sensor Array Storage Small Storage Unit Processor Advanced Signal Interpreter Hackware Improved Hacking Suite Protection Medium Regenerative Plating Weapon Great Axe Energy Gun Medium Laser Energy Cannon Advanced Plasma Cannon Ballistic Gun Light Assault Rifle Ballistic Cannon Slug Cannon Launcher Smartbomb Launcher Special Weapon Plasma Cutter Impact Weapon Mace Slashing Weapon Great Axe Piercing Weapon Enhanced Force Lance Build | -11 -10 -10 -9 -9 -8 -7 -7 -7 -7 -7 -7 -6 -6 -6 -6 -6 -6 -5 -5 -5 -5 -4 -4 -4 -4 -3 -3 -2 ------- Run | Yrd Mat Min Mat Min Mat Fac Was Fac Low Low Dat Pro Fac Ext Cet Arc Hub Fac Upp Upp Zhi Pro Fac Arm Lab Res Tes Res Slots Evolved 16 | . . . 2 . 2 2 . . . . . . 2 . . . . 2 . . . . 2 . . 2 . 2 Power 2 | . . . . . . . . . . . . . . . . . . 1 . . . . . . . . . 1 Propulsion 5 | . . . 1 . 1 1 . . . . . . 1 . . . . . . . . . . . . 1 . . Utility 8 | . . . 1 . 1 1 . . . . . . 1 . . . . 1 . . . . 1 . . 1 . 1 Weapon 1 | . . . . . . . . . . . . . . . . . . . . . . . 1 . . . . . Parts Attached 141 | 4 6 5 22 3 5 9 1 2 1 1 . 1 7 5 5 9 . 12 2 1 2 . 7 10 5 5 5 6 Power 19 | . 1 . 4 . 1 1 . . . . . . 1 2 1 . . 2 . . . . 3 1 . . 1 1 Engine 9 | . 1 . 4 . . . . . . . . . . 2 . . . 2 . . . . . . . . . . Core 4 | . . . . . 1 1 . . . . . . 1 . . . . . . . . . 1 . . . . . Reactor 6 | . . . . . . . . . . . . . . . 1 . . . . . . . 2 1 . . 1 1 Propulsion 39 | 2 . 2 10 . 1 1 . 1 . 1 . . 1 . 1 7 . 2 2 . . . 2 4 . 2 . . Treads 10 | 2 . 2 6 . . . . . . . . . . . . . . . . . . . . . . . . . Leg . | . . . . . . . . . . . . . . . . . . . . . . . . . . . . . Wheel . | . . . . . . . . . . . . . . . . . . . . . . . . . . . . . Hover 20 | . . . . . . . . . . . . . . . 1 7 . 2 2 . . . 2 4 . 2 . . Flight 9 | . . . 4 . 1 1 . 1 . 1 . . 1 . . . . . . . . . . . . . . . Utility 52 | 1 1 1 4 3 2 5 . . 1 . . . 4 2 2 2 . 6 . . 2 . 2 3 3 3 2 3 Device 26 | 1 . . 2 2 1 2 . . 1 . . . 1 . . . . 3 . . . . 1 3 2 2 2 3 Storage 3 | . . . . 1 . . . . . . . . . . . . . 1 . . . . . . . 1 . . Processor 5 | . . . . . 1 2 . . . . . . 1 . . . . . . . . . 1 . . . . . Hackware 9 | . . . . . . . . . . . . . 2 1 . 2 . 2 . . 1 . . . 1 . . . Protection 9 | . 1 1 2 . . 1 . . . . . . . 1 2 . . . . . 1 . . . . . . . Artifact . | . . . . . . . . . . . . . . . . . . . . . . . . . . . . . Weapon 31 | 1 4 2 4 . 1 2 1 1 . . . 1 1 1 1 . . 2 . 1 . . . 2 2 . 2 2 Energy Gun 4 | . 2 1 . . . . . . . . . . . . . . . . . . . . . . . . 1 . Energy Cannon 9 | . . . . . 1 . . . . . . . 1 . 1 . . 1 . . . . . 1 2 . 1 1 Ballistic Gun 6 | 1 1 1 2 . . . . . . . . . . . . . . . . . . . . . . . . 1 Ballistic Cannon 2 | . . . . . . . 1 . . . . 1 . . . . . . . . . . . . . . . . Launcher 2 | . . . 1 . . . . . . . . . . . . . . . . 1 . . . . . . . . Special Weapon 1 | . . . . . . . . . . . . . . 1 . . . . . . . . . . . . . . Impact Weapon 2 | . . . 1 . . 1 . . . . . . . . . . . . . . . . . . . . . . Slashing Weapon 4 | . 1 . . . . 1 . 1 . . . . . . . . . 1 . . . . . . . . . . Piercing Weapon 1 | . . . . . . . . . . . . . . . . . . . . . . . . 1 . . . . Special Melee Weapon . | . . . . . . . . . . . . . . . . . . . . . . . . . . . . . Unidentified Prototypes 15 | . . . . 1 . . . . . 1 . . . . 3 . . . . . 2 . . . 5 . 3 . Parts Lost 32 | . 3 1 . . . 1 . 2 . . . . . 4 1 . 1 . . . . . 2 . . . . 17 Power 3 | . 1 . . . . 1 . . . . . . . . . . . . . . . . . . . . . 1 Propulsion 15 | . . 1 . . . . . 1 . . . . . 2 1 . 1 . . . . . 1 . . . . 8 Utility 10 | . 1 . . . . . . . . . . . . 2 . . . . . . . . . . . . . 7 Weapon 4 | . 1 . . . . . . 1 . . . . . . . . . . . . . . 1 . . . . 1 Highest Loss Streak 12 | . 1 1 . . . 1 . 2 . . . . . 3 1 . 1 . . . . . 2 . . . . 12 To Critical Strikes . | . . . . . . . . . . . . . . . . . . . . . . . . . . . . . Average Backups 9 | 6 5 7 7 8 7 7 8 7 7 8 8 8 6 6 6 6 7 10 13 12 13 13 12 12 12 12 12 10 Power . | 1 1 . . . . . . . . 1 1 . . . . . . . . . . . . 1 1 1 1 . Propulsion 1 | 4 . . . 3 2 1 1 . . . . . . . . . 1 2 4 4 2 2 2 1 2 1 2 1 Utility 5 | . . 3 4 3 3 4 5 5 5 6 6 6 4 4 4 4 4 6 7 7 7 8 7 7 7 6 7 5 Weapon 1 | 1 3 4 2 1 1 1 1 1 . . . . . 1 1 1 1 1 1 . 1 1 1 1 1 1 1 3 Tool/Special . | . . . . . . . . . . . . . . . . . . . . . . . . . . . . . Unused Backups 28 | 4 3 2 4 1 . 1 . . 1 . . 1 2 . 2 1 . 1 . . . . . 1 . 2 . 2 Power 2 | . . 1 . . . . . . . . . 1 . . . . . . . . . . . . . . . . Propulsion 6 | 4 . . . . . . . . . . . . . . . . . 1 . . . . . . . 1 . . Utility 15 | . 2 . 2 1 . 1 . . . . . . 2 . 2 1 . . . . . . . 1 . 1 . 2 Weapon 5 | . 1 1 2 . . . . . 1 . . . . . . . . . . . . . . . . . . . Tool/Special . | . . . . . . . . . . . . . . . . . . . . . . . . . . . . . Average Slot Usage (%) 94 | . 93 100 95 88 97 98 100 99 100 94 100 100 93 90 81 90 100 98 100 99 99 100 98 94 94 90 90 84 Engine 4 | . 11 14 10 11 2 . . . . . . . . 4 5 . . 4 5 5 5 5 1 . . . . . Core 1 | . . . . . 6 5 7 7 7 7 7 7 6 1 . . . . . . . . 3 . . . . . Reactor 3 | . . . . . . . . . . . . . . . . 6 6 5 5 5 5 5 5 10 9 7 8 11 Treads 6 | . 27 28 29 . . . . . . . . . . . . . . . . . . . . . . . . . Hover 15 | . . . . . . . . . . . . . . . 5 28 43 38 38 38 37 38 35 34 34 29 26 22 Flight 12 | . . . 2 33 36 38 38 38 38 36 42 42 37 34 25 9 . . . . . . . . . . . . Device 12 | . 5 . 10 22 18 17 15 15 15 14 14 14 12 12 12 12 12 14 16 11 11 11 11 10 14 16 17 18 Storage 7 | . 14 14 11 11 9 7 7 7 7 7 7 7 6 6 6 6 6 5 5 5 5 5 5 5 4 4 4 3 Processor 5 | . . . . . 8 9 7 7 7 7 7 7 6 6 6 6 6 5 5 5 5 5 6 10 9 8 8 8 Hackware 4 | . . . . . . . . . . . . . 6 5 6 10 12 11 11 11 11 11 8 4 1 4 4 4 Protection 6 | . 4 14 10 . . 2 7 7 7 7 7 7 6 5 . . . 1 . 4 5 5 8 9 9 8 7 6 Energy Gun 2 | . 13 14 9 . . . . . . . . . . . . . . . . . . . . . . . 2 1 Energy Cannon 2 | . . . . . 7 7 1 . . . . . 5 3 2 3 6 4 5 4 5 5 5 5 4 4 4 2 Ballistic Gun 2 | . 14 14 9 . . . . . . . . . . . . . . . . . . . . . . . . 1 Slashing Weapon 2 | . . . . . . 2 7 6 7 7 7 7 6 6 6 6 6 5 5 4 5 5 5 . . . . . Peak Build Rating 191 | 7 7 15 22 23 27 42 43 43 43 45 45 46 65 66 62 71 71 93 96 96 99 99 124 132 148 171 178 191 Average Rating 72 | 6 6 10 17 19 26 38 42 42 43 43 45 45 59 60 54 66 71 86 93 95 97 99 114 124 131 156 171 174 On Entrance 66 | 6 7 7 15 19 20 27 42 43 43 43 45 45 46 65 56 55 71 67 93 94 96 99 99 116 128 139 171 175 Avg Prop Armor Cover (%) 3 | . . . 3 . . 7 . . . 3 3 3 3 1 6 9 . 3 3 3 3 . 3 . . 1 3 . Naked Turns . | . . . . . . . . . . . . . . . . . . . . . . . . . . . . . Heaviest Build 96 | 12 14 21 24 14 21 25 26 26 28 26 26 27 29 36 31 31 31 61 54 59 59 59 71 78 78 93 95 96 Greatest Support 109 | 40 40 40 60 15 21 27 27 27 27 31 27 31 40 40 33 61 61 65 56 56 67 67 74 79 79 96 100 109 Greatest Overweight (x) 2 | . . . 1 . . . . . 1 . . . . . 1 . . 1 . 1 1 . 1 1 . . 1 2 Average Overweight (x) . | . . . . . . . . . . . . . . . . . . . . . . . . . . . . . Largest Inventory Capacity 15 | 8 8 8 8 8 8 8 8 8 8 8 8 8 8 8 8 8 8 15 15 15 15 15 15 15 15 15 15 15 Average Capacity 10 | 8 8 8 8 8 8 8 8 8 8 8 8 8 8 8 8 8 8 14 15 15 15 15 15 15 15 15 15 14 Most Carried 15 | 7 8 8 8 8 8 8 8 8 8 8 8 8 8 8 8 8 8 15 15 15 15 15 15 15 15 15 15 15 Average Carried 10 | 5 5 7 7 7 7 7 8 7 7 8 8 8 7 7 7 7 8 11 14 14 14 15 14 14 14 14 14 12 Final Capacity 15 | 8 8 8 8 8 8 8 8 8 8 8 8 8 8 8 8 8 8 15 15 15 15 15 15 15 15 15 15 5 Final Carried 15 | 3 8 8 8 8 8 8 8 7 8 8 8 8 8 8 8 8 8 14 15 15 15 15 15 15 15 15 14 5 Class Distribution -------------------- 29% | Scavenger-Mutant 18% | Sprinter 14% | Mutant 11% | Hacker-Ninja 9% | Commander-Sprinter 6% | Commander-Ninja Dominant Class ---------------- Mutant | -10/Materials Mutant | -10/Mines Scavenger-Mutant | -9/Materials Mutant | -9/Mines Sprinter | -8/Materials Sprinter | -7/Factory Sprinter | -7/Waste Sprinter | -7/Factory Sprinter | -7/Lower Caves Sprinter | -7/Lower Caves Sprinter | -7/Data Miner Sprinter | -6/Proximity Caves Sprinter | -6/Factory Commander-Sprinter | -6/Extension Commander-Sprinter | -6/Cetus Scavenger-Mutant | -6/Archives Scavenger-Mutant | -6/Hub_04(d) Scavenger-Mutant | -5/Factory Scavenger-Mutant | -5/Upper Caves Scavenger-Mutant | -5/Upper Caves Scavenger-Mutant | -5/Zhirov Scavenger-Mutant | -4/Proximity Caves Ninja | -4/Factory Commander-Ninja | -4/Armory Scavenger-Ninja | -4/Lab Hacker-Ninja | -3/Research Hacker-Ninja | -3/Testing Hacker-Ninja | -2/Research Resources | -11 -10 -10 -9 -9 -8 -7 -7 -7 -7 -7 -7 -6 -6 -6 -6 -6 -6 -5 -5 -5 -5 -4 -4 -4 -4 -3 -3 -2 ----------- Run | Yrd Mat Min Mat Min Mat Fac Was Fac Low Low Dat Pro Fac Ext Cet Arc Hub Fac Upp Upp Zhi Pro Fac Arm Lab Res Tes Res Matter Collected 3472 | 251 177 228 516 30 50 85 70 . 56 134 . 36 225 175 60 140 . 111 129 88 60 . 110 208 . 240 150 143 Remotely . | . . . . . . . . . . . . . . . . . . . . . . . . . . . . . Salvage Created 7531 | 158 393 182 1034 22 94 84 59 78 327 48 . . 25 459 33 303 . 764 386 1089 477 146 142 64 . 432 289 443 Parts 310 | 9 28 10 74 . 2 3 . 4 9 . . . 2 22 . 27 . 29 9 15 4 . 3 3 . 14 8 35 Haulers Intercepted 15 | . 1 . 4 . 2 1 . 1 . . . . . . . . . 5 . . . . 1 . . . . . Recyclers Shooed 6 | . 1 1 3 . . . . . . . . . . . . . . . . . . . . . . 1 . . Parts Field Recycled . | . . . . . . . . . . . . . . . . . . . . . . . . . . . . . Retrieved Matter . | . . . . . . . . . . . . . . . . . . . . . . . . . . . . . Parts Self-Destructed 45 | . . . . . . . . . 20 8 . . . . . . . . 7 7 3 . . . . . . . Prevented . | . . . . . . . . . . . . . . . . . . . . . . . . . . . . . Parts Restored . | . . . . . . . . . . . . . . . . . . . . . . . . . . . . . Kills | -11 -10 -10 -9 -9 -8 -7 -7 -7 -7 -7 -7 -6 -6 -6 -6 -6 -6 -5 -5 -5 -5 -4 -4 -4 -4 -3 -3 -2 ------- Run | Yrd Mat Min Mat Min Mat Fac Was Fac Low Low Dat Pro Fac Ext Cet Arc Hub Fac Upp Upp Zhi Pro Fac Arm Lab Res Tes Res Combat Hostiles Destroyed 49 | . 11 5 22 . . . . . 1 1 . . . 5 . . . . . 4 . . . . . . . . Melee 4 | . . . . . . . . . . . . . . 4 . . . . . . . . . . . . . . Guns 32 | . 10 5 17 . . . . . . . . . . . . . . . . . . . . . . . . . Cannons 4 | . . . . . . . . . 1 1 . . . 1 . . . . . 1 . . . . . . . . AOE 9 | . 1 . 5 . . . . . . . . . . . . . . . . 3 . . . . . . . . Classes Destroyed 14 | 3 5 1 . . . 1 . . 1 1 . . . 1 . . . 1 . . . . . . . . . . Worker 14 | 2 . 1 2 1 . . . . . . . . 1 . . . . 2 . . . . 1 . . 1 . 3 Builder 6 | . . . . . . . . . . . . . . . . . . 1 . . . . . . . . 1 4 Tunneler 4 | 3 . 1 . . . . . . . . . . . . . . . . . . . . . . . . . . Hauler 15 | . 1 . 4 . 2 1 . 1 . . . . . . . . . 5 . . . . 1 . . . . . Recycler 10 | 1 . . 1 . . . . . . . . . . . . . . 1 . . . . . . . 3 2 2 Minesweeper 3 | . . . . . . . . . 1 . . . . . . . . . 2 . . . . . . . . . Mechanic 1 | . 1 . . . . . . . . . . . . . . . . . . . . . . . . . . . Operator 15 | . . . . . . 1 . . . . . . . 2 . 9 . 1 . . . . . 1 . 1 . . Watcher 8 | . 1 . . . . 1 . 1 . . . . . 1 . . . 1 . . . . . 1 . 1 . 1 Swarmer 19 | . 6 3 6 . . . . . . . . . . . . . . . . 4 . . . . . . . . Grunt 19 | . 5 1 10 . . . . . 1 . . . . 2 . . . . . . . . . . . . . . Brawler 1 | . . . . . . . . . . 1 . . . . . . . . . . . . . . . . . . Sentry 9 | . . 1 6 . . . . . . . . . . 2 . . . . . . . . . . . . . . Behemoth 1 | . . . . . . . . . . . . . . 1 . . . . . . . . . . . . . . Decomposer 2 | . . . . . . . . . 2 . . . . . . . . . . . . . . . . . . . Packrat 1 | . . . . . . . . . . . . . . . . . . . 1 . . . . . . . . . Thug 1 | . . . . . . . . . . . . . . 1 . . . . . . . . . . . . . . Best Kill Streak 5 | 2 3 3 4 1 2 1 . 1 1 1 . . 1 3 . 4 . 2 1 4 . . 1 1 . 3 2 5 Combat Bots Only 4 | . 3 3 3 . . . . . 1 1 . . . 3 . . . . . 4 . . . . . . . . Max Kills in Single Turn 3 | 1 1 2 3 1 1 1 . 1 1 1 . . 1 1 1 1 . 1 1 3 . . 1 1 . 1 1 1 Gunslinging 1 | . . 1 . . . . . . . . . . . . . . . . . . . . . . . . . . Exploded 3 | . 1 . 3 . . . . . . . . . . . . . . . . 3 . . . . . . . . Melee 1 | . . . . . . . . . . . . . . 1 . . . . . . . . . . . . . . Uniques/NPCs Destroyed 1 | . . . . . . . . . . . . . . . 1 . . . . . . . . . . . . . A7 (-6/Cetus) Combat | -11 -10 -10 -9 -9 -8 -7 -7 -7 -7 -7 -7 -6 -6 -6 -6 -6 -6 -5 -5 -5 -5 -4 -4 -4 -4 -3 -3 -2 -------- Run | Yrd Mat Min Mat Min Mat Fac Was Fac Low Low Dat Pro Fac Ext Cet Arc Hub Fac Upp Upp Zhi Pro Fac Arm Lab Res Tes Res Hostile Shots Fired 665 | . 63 11 73 4 22 25 . 2 1 7 4 14 . 39 4 . 1 3 4 4 . 14 16 8 . 12 12 322 Missed 306 | . 14 . 29 3 16 17 . 2 1 3 2 8 . 19 . . . 3 2 . . 6 8 4 . 6 8 155 Hits 359 | . 49 11 44 1 6 8 . . . 4 2 6 . 20 4 . 1 . 2 4 . 8 8 4 . 6 4 167 Melee 1 | . . 1 . . . . . . . . . . . . . . . . . . . . . . . . . . Projectile 358 | . 49 10 44 1 6 8 . . . 4 2 6 . 20 4 . 1 . 2 4 . 8 8 4 . 6 4 167 AOE 4 | . . 4 . . . . . . . . . . . . . . . . . . . . . . . . . . Critical Strikes 13 | . 1 . 2 . . . . . . 1 . . . . 1 . 1 . . . . 1 . . . . . 6 Actively Blocked 3 | . . . . . . . . . . . . . . . . . . . . . . . . . . . . 3 Part Disruptions 3 | . . . . . . . . . . . 1 . . . . . . . . . . . . . . . 1 1 Damage Taken 7090 | . 552 290 562 8 102 149 . 142 . 60 145 96 . 234 157 22 42 . 24 66 . 169 174 76 . 149 92 3779 Core 1944 | . 95 32 84 . 37 . . . . . 46 15 . 9 85 22 . . . 2 . . 17 14 . 24 . 1462 Absorbed by Shields 134 | . . . . . . . . . . . . . . 98 14 . . . . . . . . . . . . 22 Redirected to Shielding 290 | . 5 1 . . . . . 40 . 8 . 22 . 51 . . . . . . . . . . . . 19 144 Regen/Repaired (Parts) 640 | . 102 . . . . . 7 . . . . . 27 . 1 . . 83 . 30 . 19 9 92 55 67 25 123 Core Remaining (%) 87 | 100 . 49 . 79 93 . . . . . . 91 . . . . 86 . . . . 99 . . 97 . 92 . Volleys Fired 317 | 12 63 7 58 . 3 . 10 . 4 16 . 1 1 12 5 1 . 6 25 9 . 5 12 22 2 21 10 12 Largest 2 | 2 2 2 2 . 1 . 1 . 1 1 . 1 1 1 1 1 . 1 1 1 . 1 2 1 1 1 2 1 Hottest 200 | 90 70 98 98 . 60 . 40 . 40 40 . 40 85 85 85 85 . 98 98 98 . 98 118 120 120 120 200 120 Shots Fired 455 | 24 125 15 112 . 3 . 10 . 4 16 . 1 1 12 5 1 . 6 25 9 . 5 13 22 2 21 11 12 Gun 279 | 24 125 15 109 . . . . . . . . . . . . . . . . . . . . . . . 1 5 Cannon 166 | . . . . . 3 . 10 . 4 16 . 1 1 12 5 1 . 6 25 6 . 5 12 19 2 21 10 7 Launcher 9 | . . . 3 . . . . . . . . . . . . . . . . 3 . . . 3 . . . . Special 1 | . . . . . . . . . . . . . . . . . . . . . . . 1 . . . . . Kinetic 165 | 11 62 7 54 . . . 10 . 4 16 . 1 . . . . . . . . . . . . . . . . Thermal 263 | 12 52 8 55 . 3 . . . . . . . 1 12 5 1 . 6 25 6 . 5 13 19 2 21 10 7 Explosive 9 | . . . 3 . . . . . . . . . . . . . . . . 3 . . . 3 . . . . Electromagnetic 18 | 1 11 . . . . . . . . . . . . . . . . . . . . . . . . . 1 5 Robot Hit Streak 15 | 5 10 7 15 . . . 5 . 1 3 . . . 3 1 1 . 5 . 6 . . . 2 . 6 . 4 Robot Miss Streak 4 | 2 4 3 3 . . . 3 . 1 2 . . . 2 1 . . . . . . . 2 . . . 2 1 Penetration Max . | . . . . . . . . . . . . . . . . . . . . . . . . . . . . . Secondary Targets 4 | . 1 2 1 . . . . . . . . . . . . . . . . . . . . . . . . . Max Gunslinging Chain 1 | . 1 1 1 . . . . . . . . . . . . . . . . . . . . . . . . . Shots Hit Robots 379 | 14 79 10 70 1 3 5 6 4 10 7 . . 2 33 10 17 . 20 8 21 15 5 2 5 . 13 4 15 Core Hits 171 | 5 27 9 35 . . 2 1 2 6 3 . . . 9 1 6 . 11 6 17 4 2 2 7 . 8 2 6 Critical Kills 2 | . 1 . . . . . . . . 1 . . . . . . . . . . . . . . . . . . Critical Parts Destroyed 9 | . . . . 1 3 1 2 . 1 1 . . . . . . . . . . . . . . . . . . Critical Strikes 40 | 3 5 1 3 1 3 1 2 . 1 4 . . . 4 2 . . 4 . . . . . 1 . 2 . 3 Burn 11 | 3 4 1 3 . . . . . . . . . . . . . . . . . . . . . . . . . Destroy 8 | . 1 . . . . . 2 . 1 4 . . . . . . . . . . . . . . . . . . Smash 5 | . . . . 1 3 1 . . . . . . . . . . . . . . . . . . . . . . Sever 10 | . . . . . . . . . . . . . . 4 2 . . 4 . . . . . . . . . . Impale 6 | . . . . . . . . . . . . . . . . . . . . . . . . 1 . 2 . 3 Melee Attacks 441 | . 1 . 11 2 8 16 1 5 11 6 . 6 24 30 9 22 1 37 12 25 15 8 30 39 11 38 38 35 Impact 31 | . . . 11 2 8 10 . . . . . . . . . . . . . . . . . . . . . . Slashing 250 | . 1 . . . . 6 1 5 11 6 . 6 24 30 9 22 1 37 12 25 15 8 30 1 . . . . Piercing 160 | . . . . . . . . . . . . . . . . . . . . . . . . 38 11 38 38 35 Sneak Attacks 81 | . . . 3 1 1 3 . 1 3 . . . 1 14 8 9 . 11 3 . . . 2 1 . 6 3 11 Combat Hostiles 2 | . . . . . . . . . . . . . . 2 . . . . . . . . . . . . . . Follow-up Attacks . | . . . . . . . . . . . . . . . . . . . . . . . . . . . . . Damage Inflicted 17696 | 156 885 143 2007 55 141 384 268 232 645 257 . . 133 1898 566 1370 . 1258 722 1846 1341 359 167 482 . 933 342 1106 Guns 2444 | 153 798 128 1312 . . . . . . . . . . . . . . . . . . . . . . . . 53 Cannons 1221 | . . . . . . . 161 . 63 257 . . . 214 91 31 . 134 . 35 . . . 65 . 170 . . Explosions 1105 | . 72 . 472 . . . . . . . . . . . . . . . . 329 . . . 232 . . . . Melee 12885 | . . . 215 55 141 384 107 232 582 . . . 133 1684 475 1339 . 1124 722 1482 1341 359 167 185 . 763 342 1053 Ramming 41 | 3 15 15 8 . . . . . . . . . . . . . . . . . . . . . . . . . Kinetic 1273 | 40 282 56 414 . . . 161 . 63 257 . . . . . . . . . . . . . . . . . . Thermal 2298 | 100 488 72 898 . . . . . . . . . . 214 91 31 . 134 . 35 . . . 65 . 170 . . Explosive 1033 | . . . 472 . . . . . . . . . . . . . . . . 329 . . . 232 . . . . Electromagnetic 166 | 13 100 . . . . . . . . . . . . . . . . . . . . . . . . . . 53 Impact 664 | . . . 215 55 141 253 . . . . . . . . . . . . . . . . . . . . . . Slashing 9878 | . . . . . . 131 107 232 582 . . . 133 1684 475 1339 . 1124 722 1482 1341 359 167 . . . . . Piercing 2343 | . . . . . . . . . . . . . . . . . . . . . . . . 185 . 763 342 1053 Highest Corruption 15 | . 3 3 . . . . . . . . 1 1 . . . . . . . . . 1 1 1 . 1 1 15 Average Corruption 2 | . 2 3 . . . . . . . . 1 1 . . . . . . . . . 1 1 1 . 1 1 4 Corruption Purged 2 | . . . . . . . . . . . . . . . . . . . . . . . . 1 . . 1 . Corruption Blocked . | . . . . . . . . . . . . . . . . . . . . . . . . . . . . . Effects 28 | . 6 11 . . . . . . . . 1 3 . . . . . . . . . . . . . 2 . 5 Message Errors 6 | . . 2 . . . . . . . . . 1 . . . . . . . . . . . . . 1 . 2 Matter Fused 2 | . 1 . . . . . . . . . . . . . . . . . . . . . . . . . . 1 Heat Flow Errors 5 | . 1 3 . . . . . . . . 1 . . . . . . . . . . . . . . . . . Energy Discharges 4 | . 1 2 . . . . . . . . . . . . . . . . . . . . . . . . . 1 Parts Rejected 1 | . 1 . . . . . . . . . . . . . . . . . . . . . . . . . . . Data Loss (minor) 7 | . 2 2 . . . . . . . . . 1 . . . . . . . . . . . . . 1 . 1 Data Loss (major) 1 | . . 1 . . . . . . . . . . . . . . . . . . . . . . . . . . Misfires 1 | . . 1 . . . . . . . . . . . . . . . . . . . . . . . . . . Alerts 1 | . . . . . . . . . . . . 1 . . . . . . . . . . . . . . . . Overload Shots . | . . . . . . . . . . . . . . . . . . . . . . . . . . . . . Overflow Damage 3194 | . . . 78 55 141 161 . 7 136 . . . 58 29 45 559 . 151 89 399 297 55 . 181 . 261 86 406 Projectiles . | . . . . . . . . . . . . . . . . . . . . . . . . . . . . . Explosions . | . . . . . . . . . . . . . . . . . . . . . . . . . . . . . Melee 3194 | . . . 78 55 141 161 . 7 136 . . . 58 29 45 559 . 151 89 399 297 55 . 181 . 261 86 406 Knockbacks 6 | . 1 . 1 1 . 2 . . . 1 . . . . . . . . . . . . . . . . . . Impact 5 | . 1 . 1 1 . 2 . . . . . . . . . . . . . . . . . . . . . . Kinetic 1 | . . . . . . . . . . 1 . . . . . . . . . . . . . . . . . . Secondary . | . . . . . . . . . . . . . . . . . . . . . . . . . . . . . Self-Inflicted Damage 4 | . . . . . . . . . . . . . . . . . . . . 4 . . . . . . . . Shots 1 | . . . . . . . . . . . . . . . . . . . . 1 . . . . . . . . Rammed 15 | . 7 4 4 . . . . . . . . . . . . . . . . . . . . . . . . . Targets Rammed 19 | 2 7 5 5 . . . . . . . . . . . . . . . . . . . . . . . . . Kicked . | . . . . . . . . . . . . . . . . . . . . . . . . . . . . . Crushed 4 | 2 . 1 1 . . . . . . . . . . . . . . . . . . . . . . . . . Highest Temperature 348 | 110 220 164 41 . 60 9 8 2 . 105 198 15 58 126 182 40 . 348 188 178 . 68 75 236 20 28 6 . Average Temperature 47 | 48 62 57 13 . 23 5 3 2 . 39 169 8 15 28 69 25 . 68 62 71 . 32 14 47 12 7 4 . Received Heat Transfer 795 | . 195 41 258 . 45 27 . . . 45 . . . 28 18 . . . 9 . . . 30 . . 9 . 90 Effects 4 | . 1 . . . . . . . . . . . . . . . . 3 . . . . . . . . . . Energy Bleed 3 | . 1 . . . . . . . . . . . . . . . . 2 . . . . . . . . . . Short Circuit 1 | . . . . . . . . . . . . . . . . . . 1 . . . . . . . . . . Siege Activations . | . . . . . . . . . . . . . . . . . . . . . . . . . . . . . Martial Activations . | . . . . . . . . . . . . . . . . . . . . . . . . . . . . . Shielding Activations . | . . . . . . . . . . . . . . . . . . . . . . . . . . . . . Robots Disrupted . | . . . . . . . . . . . . . . . . . . . . . . . . . . . . . Combat Hostiles . | . . . . . . . . . . . . . . . . . . . . . . . . . . . . . Robots Corrupted 5 | . . . 2 1 1 1 . . . . . . . . . . . . . . . . . . . . . . Combat Hostiles . | . . . . . . . . . . . . . . . . . . . . . . . . . . . . . Parts Fried 6 | . . . 3 . 2 1 . . . . . . . . . . . . . . . . . . . . . . Impact Corruptions 15 | . . . 4 3 3 5 . . . . . . . . . . . . . . . . . . . . . . Robots Melted . | . . . . . . . . . . . . . . . . . . . . . . . . . . . . . Combat Hostiles . | . . . . . . . . . . . . . . . . . . . . . . . . . . . . . Parts Melted 10 | 1 3 2 3 . . . . . . . . . . . . . . 1 . . . . . . . . . . Heat Transferred 4975 | 518 1567 259 1739 . . . . . . . . . . 259 111 37 . 187 . 50 . . . 100 . 148 . . Parts Sabotaged . | . . . . . . . . . . . . . . . . . . . . . . . . . . . . . Parts Stolen . | . . . . . . . . . . . . . . . . . . . . . . . . . . . . . Parts Stripped . | . . . . . . . . . . . . . . . . . . . . . . . . . . . . . Power Chain Reactions 2 | . 2 . . . . . . . . . . . . . . . . . . . . . . . . . . . Alert | -11 -10 -10 -9 -9 -8 -7 -7 -7 -7 -7 -7 -6 -6 -6 -6 -6 -6 -5 -5 -5 -5 -4 -4 -4 -4 -3 -3 -2 ------- Run | Yrd Mat Min Mat Min Mat Fac Was Fac Low Low Dat Pro Fac Ext Cet Arc Hub Fac Upp Upp Zhi Pro Fac Arm Lab Res Tes Res Maximum Alert Level 2 | . . . 1 . . . . . . . . . . 2 1 . . . . . . . . 2 . . . 1 Low Security (%) 82 | 100 100 100 71 100 100 100 100 100 . . . . 100 15 96 100 100 100 . . . . 100 38 . 100 100 98 Level 1 13 | . . . 28 . . . . . . . . . . 59 3 . . . . . . . . 43 . . . 1 Level 2 4 | . . . . . . . . . . . . . . 25 . . . . . . . . . 17 . . . . Level 3 . | . . . . . . . . . . . . . . . . . . . . . . . . . . . . . Level 4 . | . . . . . . . . . . . . . . . . . . . . . . . . . . . . . Level 5 . | . . . . . . . . . . . . . . . . . . . . . . . . . . . . . High Security . | . . . . . . . . . . . . . . . . . . . . . . . . . . . . . Max Security . | . . . . . . . . . . . . . . . . . . . . . . . . . . . . . Peak Influence 623 | 10 100 60 386 148 33 60 4 126 . . . . 81 457 240 155 94 39 . . . . 88 623 . 94 35 214 Initial 214 | . 6 22 . 148 . 3 4 . . . . . 6 7 214 44 29 14 . . . . . 25 . . 1 9 Average 96 | 1 22 12 143 76 13 18 . 79 . . . . 25 315 114 118 51 9 . . . . 24 242 . 22 5 66 Influence Increases 8241 | 30 385 130 769 21 74 210 1 356 633 453 . 120 226 1012 412 281 82 274 30 100 15 10 247 1289 . 300 166 615 Destroy 0b10 Robot/C 2740 | . 220 100 440 . . . . 140 360 260 . . . 520 140 80 . 20 . 80 . . . 380 . . . . Destroy 0b10 Robot/NC 480 | 30 15 10 35 5 10 15 . 25 20 . . . 5 20 10 45 . 55 30 10 15 10 10 10 . 30 15 50 Destroy Leader 486 | . 44 20 128 . 4 2 . 34 30 50 . . . 44 . . . 22 . 10 . . 2 92 . 2 . 2 Allied During Kill 1443 | . . . . . . . . 94 223 128 . . . 302 122 125 . 5 . . . . . 444 . . . . Successful Hack 523 | . 22 . 31 . 25 50 . 16 . . . . 66 7 . . . 57 . . . . 60 32 . 117 25 15 Select Force Hacks 100 | . . . . . . . . . . . . . . . . . 50 . . . . . . . . . . 50 Disable Machine 615 | . . . 45 . . 30 . 15 . . . . 15 75 120 30 . 30 . . . . . 165 . 30 45 15 Destroy Structure 579 | . 9 . 30 1 5 8 1 17 . . . . 20 14 5 1 2 40 . . . . 70 136 . 76 66 78 Partial Spotted 300 | . . . . . 30 30 . 15 . . . . 45 15 . . 30 . . . . . 45 15 . 30 15 30 Lose Combat Pursuer 975 | . 75 . 60 15 . 75 . . . 15 . 120 75 15 15 . . 45 . . . . 60 15 . 15 . 375 Influence Decreases 8154 | 20 336 189 388 402 65 206 14 260 318 379 485 110 221 643 686 306 136 300 35 100 10 15 195 736 605 297 152 545 Entered New Map 1860 | . 4 37 . 233 . 6 9 . 36 79 485 . 4 8 170 66 56 17 3 . . 5 . 27 605 . 2 8 Time Decay 4673 | 20 303 142 388 169 65 200 5 100 262 170 . 110 207 445 326 160 10 242 32 100 10 10 165 379 . 286 140 227 Search Patrol Dispatched 100 | . . . . . . . . . . . . . . . . . . . . . . . . . . . . 100 Lost Part 299 | . 29 10 . . . . . 20 . . . . . 30 10 . 10 . . . . . 20 . . . . 170 Lost Ally 1053 | . . . . . . . . 140 20 130 . . 10 160 180 80 60 22 . . . . 10 180 . 11 10 40 Purge Threat 169 | . . . . . . . . . . . . . . . . . . 19 . . . . . 150 . . . . Squads Dispatched 42 | . 2 . 4 . 1 2 . 2 . 1 . . 2 1 . . 1 5 . . . . 3 9 . 2 3 4 Investigation 11 | . . . 1 . . 1 . 1 . . . . 1 1 . . 1 2 . . . . . 2 . . . 1 Extermination 14 | . . . . . . 1 . . . . . . 1 . . . . 1 . . . . 2 3 . 2 2 2 Reinforcement 15 | . 2 . 3 . 1 . . . . . . . . . . . . 2 . . . . 1 4 . . 1 1 Assault 1 | . . . . . . . . . . 1 . . . . . . . . . . . . . . . . . . Garrison 1 | . . . . . . . . 1 . . . . . . . . . . . . . . . . . . . . Intercept . | . . . . . . . . . . . . . . . . . . . . . . . . . . . . . Searches Triggered 1 | . . . . . . . . . . . . . . . . . . . . . . . . . . . . 1 Construction Impeded 1 | . . . 1 . . . . . . . . . . . . . . . . . . . . . . . . . Haulers Reinforced 1 | . . . . . . . . . . . . . . . . . . 1 . . . . . . . . . . Active Scanning Responses . | . . . . . . . . . . . . . . . . . . . . . . . . . . . . . Cargo Convoy Interrupts . | . . . . . . . . . . . . . . . . . . . . . . . . . . . . . Stealth | -11 -10 -10 -9 -9 -8 -7 -7 -7 -7 -7 -7 -6 -6 -6 -6 -6 -6 -5 -5 -5 -5 -4 -4 -4 -4 -3 -3 -2 --------- Run | Yrd Mat Min Mat Min Mat Fac Was Fac Low Low Dat Pro Fac Ext Cet Arc Hub Fac Upp Upp Zhi Pro Fac Arm Lab Res Tes Res Distress Signals 16 | . 2 . . . 2 . . . . . . . 1 1 2 . . 1 . . . . 1 5 . . . 1 Communications Jammed 76 | . . . . . . . . . . . . . . 10 . . . . . . . . 27 19 . 9 . 11 Distress Signals 76 | . . . . . . . . . . . . . . 10 . . . . . . . . 27 19 . 9 . 11 Times Spotted 380 | . 26 22 46 4 27 16 . 4 9 18 3 13 8 28 11 9 4 8 1 4 . 3 17 15 . 12 11 61 Peak Tracking Total 29 | . 4 16 6 4 12 6 . 1 7 7 3 9 4 4 5 2 6 4 1 4 . 3 5 2 . 5 3 29 Tactical Retreats 42 | . 3 1 3 1 5 4 . . . 1 . 2 2 1 1 . . 2 1 . . . 3 1 . 1 . 10 ECM-based Alert Blocks 18 | . . . . . 13 5 . . . . . . . . . . . . . . . . . . . . . . Traps | -11 -10 -10 -9 -9 -8 -7 -7 -7 -7 -7 -7 -6 -6 -6 -6 -6 -6 -5 -5 -5 -5 -4 -4 -4 -4 -3 -3 -2 ------- Run | Yrd Mat Min Mat Min Mat Fac Was Fac Low Low Dat Pro Fac Ext Cet Arc Hub Fac Upp Upp Zhi Pro Fac Arm Lab Res Tes Res Traps Triggered 16 | . 3 . 1 . . 4 . . . . . . . 1 . . . 1 . . . . 1 3 . . . 2 Indirectly . | . . . . . . . . . . . . . . . . . . . . . . . . . . . . . Trap Hack Attempts . | . . . . . . . . . . . . . . . . . . . . . . . . . . . . . Triggered . | . . . . . . . . . . . . . . . . . . . . . . . . . . . . . Disarmed . | . . . . . . . . . . . . . . . . . . . . . . . . . . . . . Reprogrammed . | . . . . . . . . . . . . . . . . . . . . . . . . . . . . . Reused 4 | . . . . . . . . . . . 1 . . . . . . . 3 . . . . . . . . . Traps Extracted . | . . . . . . . . . . . . . . . . . . . . . . . . . . . . . Installed 10 | . . . . . . . . . . . 1 . . . . . . . 8 . . . 1 . . . . . Triggered 2 | . . . . . . . . . . . . . . . . . . . 2 . . . . . . . . . Most Traps Carried 7 | . . . . . . . . . 2 2 2 1 1 1 1 1 1 1 7 7 7 7 7 6 . . . . Machines | -11 -10 -10 -9 -9 -8 -7 -7 -7 -7 -7 -7 -6 -6 -6 -6 -6 -6 -5 -5 -5 -5 -4 -4 -4 -4 -3 -3 -2 ---------- Run | Yrd Mat Min Mat Min Mat Fac Was Fac Low Low Dat Pro Fac Ext Cet Arc Hub Fac Upp Upp Zhi Pro Fac Arm Lab Res Tes Res Machines Disabled 47 | . . . 3 . . 2 . 1 3 . . . 1 5 8 2 . 2 1 . . . . 11 2 2 3 1 Max in Single Turn 1 | . . . 1 . . 1 . . 1 . . . 1 1 1 1 . 1 1 . . . . 1 1 1 1 1 Garrison Access 4 | . . . . . . 1 . 1 . . . . . . . . . 1 . . . . . . . 1 . . Network Hub 1 | . . . . . . . . . . . . . . . . . 1 . . . . . . . . . . . Machines Repaired . | . . . . . . . . . . . . . . . . . . . . . . . . . . . . . Machines Dismantled 13 | . . . . . . . . . . . . . . 5 8 . . . . . . . . . . . . . Machines Sabotaged 1 | . . . . . . . . . . . . . . . . . 1 . . . . . . . . . . . Overloaded Fab Kills . | . . . . . . . . . . . . . . . . . . . . . . . . . . . . . Hacking | -11 -10 -10 -9 -9 -8 -7 -7 -7 -7 -7 -7 -6 -6 -6 -6 -6 -6 -5 -5 -5 -5 -4 -4 -4 -4 -3 -3 -2 --------- Run | Yrd Mat Min Mat Min Mat Fac Was Fac Low Low Dat Pro Fac Ext Cet Arc Hub Fac Upp Upp Zhi Pro Fac Arm Lab Res Tes Res Machines Accessed 116 | . 8 1 11 1 5 13 . 6 3 . 4 1 9 4 . 1 1 9 . . 4 . 6 10 1 9 3 6 Terminals 68 | . 7 . 9 . 4 5 . 3 1 . . 1 4 4 . . 1 5 . . . . 5 7 . 6 2 4 Fabricators 15 | . . . . . . 3 . 2 . . . . 3 . . . . 3 . . . . . 3 . . . 1 Repair Stations 2 | . 1 . . . . . . . . . . . . . . . . . . . . . . . . 1 . . Recycling Units 2 | . . . 1 . . 1 . . . . . . . . . . . . . . . . . . . . . . Scanalyzers 9 | . . . 1 . 1 2 . . . . . . 1 . . . . . . . . . 1 . . 1 1 1 Garrison Access 6 | . . . . . . 2 . 1 . . . . 1 . . . . 1 . . . . . . . 1 . . Total Hacks 393 | . 18 1 38 1 13 46 . 12 11 . 29 4 30 9 . 1 1 50 . . 17 . 23 34 3 24 11 17 Successful 230 | . 12 1 22 1 6 22 . 5 11 . 29 4 11 2 . 1 1 31 . . 17 . 10 14 3 13 3 11 Failed 159 | . 5 . 16 . 6 24 . 7 . . . . 19 7 . . . 19 . . . . 12 20 . 10 8 6 Catastrophic 25 | . 1 . 3 . . 4 . 2 . . . . 2 1 . . . 7 . . . . 3 2 . . . . Database Lockouts 4 | . 1 . . . 1 . . . . . . . . . . . . . . . . . 1 . . 1 . . Manual 153 | . 7 . 21 . 8 25 . 9 . . . . 13 . 1 . 1 27 . . . . 7 12 . 8 5 9 Terminals 237 | . 16 . 31 . 11 21 . 7 4 . . 4 16 9 . . 1 34 . . . . 21 26 . 18 7 11 Fabricators 49 | . . . . . . 15 . 4 . . . . 7 . . . . 14 . . . . . 8 . . . 1 Repair Stations 5 | . 2 . . . . . . . . . . . . . . . . . . . . . . . . 3 . . Recycling Units 5 | . . . 3 . . 2 . . . . . . . . . . . . . . . . . . . . . . Scanalyzers 26 | . . . 4 . 2 3 . . . . . . 4 . . . . . . . . . 2 . . 2 4 5 Garrison Access 12 | . . . . . . 5 . 1 . . . . 3 . . . . 2 . . . . . . . 1 . . Terminal Hacks 124 | . 9 1 8 1 3 3 . . 11 . 29 4 . 2 . 1 . 11 . . 17 . 6 9 3 4 . 2 Record 36 | . . . . . . . . . 10 . 11 4 . . . 1 . . . . 5 . . 2 3 . . . Part Schematic 16 | . . . . . . 1 . . . . 10 . . . . . . . . . 4 . . . . 1 . . Robot Schematic 6 | . . . 1 . . . . . . . 5 . . . . . . . . . . . . . . . . . Robot Analysis 11 | . 4 . . . . . . . . . . . . . . . . 1 . . 4 . . 1 . 1 . . Prototype ID Bank 17 | . 1 . 3 . 1 1 . . . . 3 . . . . . . 1 . . 4 . 2 1 . . . . Open Door 5 | . . 1 . 1 . . . . 1 . . . . 2 . . . . . . . . . . . . . . Level Access Points 2 | . . . . . . . . . . . . . . . . . . 1 . . . . . 1 . . . . Branch Access Points 4 | . . . . . . . . . . . . . . . . . . 1 . . . . 1 . . 1 . 1 Emergency Access Points 1 | . . . . . . . . . . . . . . . . . . 1 . . . . . . . . . . Terminal Index 3 | . . . 1 . 1 . . . . . . . . . . . . 1 . . . . . . . . . . Alert Level 4 | . . . 1 . . . . . . . . . . . . . . 1 . . . . . 2 . . . . Unreport Threat 2 | . . . . . . . . . . . . . . . . . . 1 . . . . . 1 . . . . Locate Traps 6 | . 1 . 1 . . . . . . . . . . . . . . 1 . . . . 1 1 . . . 1 Dispatch Records 1 | . 1 . . . . . . . . . . . . . . . . . . . . . . . . . . . Hauler Manifests 3 | . 1 . 1 . . . . . . . . . . . . . . 1 . . . . . . . . . . Registered Components 1 | . . . . . . . . . . . . . . . . . . . . . . . 1 . . . . . Zone Layout 6 | . 1 . . . 1 1 . . . . . . . . . . . 1 . . . . 1 . . 1 . . Fabricator Hacks 19 | . . . . . . 3 . . . . . . 6 . . . . 6 . . . . . 4 . . . . Network Status 6 | . . . . . . 2 . . . . . . 1 . . . . 2 . . . . . 1 . . . . Load Schematic 7 | . . . . . . 1 . . . . . . 2 . . . . 2 . . . . . 2 . . . . Build 6 | . . . . . . . . . . . . . 3 . . . . 2 . . . . . 1 . . . . Repair Station Hacks 4 | . 2 . . . . . . . . . . . . . . . . . . . . . . . . 2 . . Scan Component 2 | . 1 . . . . . . . . . . . . . . . . . . . . . . . . 1 . . Repair 2 | . 1 . . . . . . . . . . . . . . . . . . . . . . . . 1 . . Recycling Unit Hacks 1 | . . . . . . 1 . . . . . . . . . . . . . . . . . . . . . . Retrieve Components 1 | . . . . . . 1 . . . . . . . . . . . . . . . . . . . . . . Scanalyzer 18 | . . . 4 . 1 3 . . . . . . 1 . . . . . . . . . 1 . . 1 2 5 Insert Component 1 | . . . 1 . . . . . . . . . . . . . . . . . . . . . . . . . Analyze 1 | . . . 1 . . . . . . . . . . . . . . . . . . . . . . . . . Retrieve Study 16 | . . . 2 . 1 3 . . . . . . 1 . . . . . . . . . 1 . . 1 2 5 Garrison Access Hacks 4 | . . . . . . 1 . 1 . . . . . . . . . 1 . . . . . . . 1 . . Seal Access 4 | . . . . . . 1 . 1 . . . . . . . . . 1 . . . . . . . 1 . . Unauthorized Hacks 60 | . 1 . 10 . 2 11 . 4 . . . . 4 . . . 1 13 . . . . 3 1 . 5 1 4 Terminals 48 | . 1 . 10 . 2 6 . 2 . . . . 4 . . . 1 10 . . . . 3 1 . 4 1 3 Track 2 | . . . 1 . . . . . . . . . . . . . . 1 . . . . . . . . . . Assimilate 9 | . . . . . . 1 . . . . . . 2 . . . . 1 . . . . 1 . . 2 1 1 Botnet 21 | . 1 . 3 . 1 2 . 2 . . . . 1 . . . . 4 . . . . 2 1 . 2 . 2 Operators 5 | . . . 1 . . 1 . . . . . . 1 . . . . 2 . . . . . . . . . . Skim 10 | . . . 5 . 1 2 . . . . . . . . . . . 2 . . . . . . . . . . Sabotage 1 | . . . . . . . . . . . . . . . . . 1 . . . . . . . . . . . Fabricators 11 | . . . . . . 5 . 2 . . . . . . . . . 3 . . . . . . . . . 1 Liberate 4 | . . . . . . 2 . . . . . . . . . . . 2 . . . . . . . . . . Fabnet 3 | . . . . . . 2 . 1 . . . . . . . . . . . . . . . . . . . . Haulers 2 | . . . . . . 1 . 1 . . . . . . . . . . . . . . . . . . . . Overload 1 | . . . . . . . . . . . . . . . . . . . . . . . . . . . . 1 Recompile 1 | . . . . . . . . . . . . . . . . . . 1 . . . . . . . . . . Repair Stations 1 | . . . . . . . . . . . . . . . . . . . . . . . . . . 1 . . Mechanics 1 | . . . . . . . . . . . . . . . . . . . . . . . . . . 1 . . Recycling Units . | . . . . . . . . . . . . . . . . . . . . . . . . . . . . . Scanalyzers . | . . . . . . . . . . . . . . . . . . . . . . . . . . . . . Garrison Access . | . . . . . . . . . . . . . . . . . . . . . . . . . . . . . Data Cores Recovered 3 | . . . . . . 1 . . . . . . . . . . . 1 . . . . . . . 1 . . Used 2 | . . . . . . 1 . . . . . . . . . . . . . . . . . . . 1 . . Hacking Detections 85 | . 6 . 10 . 4 10 . 5 1 . . 1 9 4 . . . 6 . . . . 5 10 . 7 3 4 Full Trace Events 6 | . . . 1 . . 1 . . 1 . . . 1 1 . . . . . . . . . 1 . . . . Feedback Events . | . . . . . . . . . . . . . . . . . . . . . . . . . . . . . Feedback Blocked . | . . . . . . . . . . . . . . . . . . . . . . . . . . . . . Robot Schematics Acquired 6 | . . . 1 . . . . . . . 5 . . . . . . . . . . . . . . . . . Robots Built 1 | . . . . . . . . . . . . . 1 . . . . . . . . . . . . . . . Authchips 1 | . . . . . . . . . . . . . 1 . . . . . . . . . . . . . . . Time 103 | . . . . . . . . . . . . . 27 . . . . 76 . . . . . . . . . . Total Robot Build Rating 1 | . . . . . . . . . . . . . 1 . . . . . . . . . . . . . . . Part Schematics Acquired 17 | . . . 1 . . 1 . . . . 10 . . . . . . . . . 4 . . . . 1 . . Parts Built 4 | . . . . . . . . . . . . . 2 . . . . 1 . . . . . 1 . . . . Authchips 1 | . . . . . . . . . . . . . . . . . . 1 . . . . . . . . . . Time 422 | . . . . . . . . . . . . . 159 . . . . 76 . . . . . 187 . . . . Total Part Build Rating 24 | . . . . . . . . . . . . . 12 . . . . 5 . . . . . 7 . . . . Part Studies Acquired 16 | . . . 2 . 1 3 . . . . . . 1 . . . . . . . . . 1 . . 1 2 5 Parts Repaired 2 | . 1 . . . . . . . . . . . . . . . . . . . . . . . . 1 . . Time 80 | . 26 . . . . . . . . . . . . . . . . . . . . . . . . 54 . . Parts Recycled . | . . . . . . . . . . . . . . . . . . . . . . . . . . . . . Recycled Matter . | . . . . . . . . . . . . . . . . . . . . . . . . . . . . . Retrieved Matter . | . . . . . . . . . . . . . . . . . . . . . . . . . . . . . Retrieved Components 2 | . . . . . . 2 . . . . . . . . . . . . . . . . . . . . . . Parts Scanalyzed 1 | . . . 1 . . . . . . . . . . . . . . . . . . . . . . . . . Part Schematics Acquired 1 | . . . 1 . . . . . . . . . . . . . . . . . . . . . . . . . Parts Damaged . | . . . . . . . . . . . . . . . . . . . . . . . . . . . . . Bothacking | -11 -10 -10 -9 -9 -8 -7 -7 -7 -7 -7 -7 -6 -6 -6 -6 -6 -6 -5 -5 -5 -5 -4 -4 -4 -4 -3 -3 -2 ------------ Run | Yrd Mat Min Mat Min Mat Fac Was Fac Low Low Dat Pro Fac Ext Cet Arc Hub Fac Upp Upp Zhi Pro Fac Arm Lab Res Tes Res Used RIF Installer . | . . . . . . . . . . . . . . . . . . . . . . . . . . . . . Robots Hacked 5 | . . . . . . . . . . . . 1 1 3 . . . . . . . . . . . . . . Non-combat . | . . . . . . . . . . . . . . . . . . . . . . . . . . . . . Combat 5 | . . . . . . . . . . . . 1 1 3 . . . . . . . . . . . . . . Robot Hacks Applied . | . . . . . . . . . . . . . . . . . . . . . . . . . . . . . Relay Couplers Released . | . . . . . . . . . . . . . . . . . . . . . . . . . . . . . Fabnet Peak Effective % 9 | . . . . . . . . . . . . 9 9 9 9 9 9 3 3 3 3 . . . . . . . Autooverrided 5 | . . . . . . . . . . . . 1 1 3 . . . . . . . . . . . . . . Robots Rewired 31 | . . . . . . . . . . . . . . 16 1 . . . . . . . . 14 . . . . Allies Hacked 4 | . . . . . . . . . 1 . . . 1 . . . . . . . . . . 2 . . . . Hacks Repelled . | . . . . . . . . . . . . . . . . . . . . . . . . . . . . . Allies | -11 -10 -10 -9 -9 -8 -7 -7 -7 -7 -7 -7 -6 -6 -6 -6 -6 -6 -5 -5 -5 -5 -4 -4 -4 -4 -3 -3 -2 -------- Run | Yrd Mat Min Mat Min Mat Fac Was Fac Low Low Dat Pro Fac Ext Cet Arc Hub Fac Upp Upp Zhi Pro Fac Arm Lab Res Tes Res Total Allies 91 | . . . . . . 4 20 . . . . 1 3 27 6 . . 2 . . . . 1 24 . 2 1 . Largest Group 21 | . . . . . . 3 20 20 12 9 . . 2 13 13 8 5 2 . . . . 1 21 . 2 1 . Highest-Rated Group 863 | . . . . . . 48 539 539 363 269 . . 43 530 786 538 410 108 . . . . 45 863 . 71 24 . Highest-Rated Ally 159 | . . . . . . 16 35 35 35 35 . . 29 159 159 96 96 54 . . . . 45 58 . 45 24 . Total Orders 13 | . . . . . . . . . . . . . 4 5 3 . . . . . . . . . 1 . . . STAY 2 | . . . . . . . . . . . . . 2 . . . . . . . . . . . . . . . ROAM 5 | . . . . . . . . . . . . . . 3 2 . . . . . . . . . . . . . FOLLOW 4 | . . . . . . . . . . . . . 1 2 1 . . . . . . . . . . . . . AID 1 | . . . . . . . . . . . . . 1 . . . . . . . . . . . . . . . RETURN 1 | . . . . . . . . . . . . . . . . . . . . . . . . . 1 . . . Ally Attacks 614 | . . . . . . . . 106 58 43 . . 3 145 81 21 1 3 . . . . . 145 . . . 8 Total Damage 16986 | . . . . . . . . 1657 2599 1770 . . 40 3854 2169 706 . 96 . . . . . 3914 . . . 181 Kills 99 | . . . . . . . . 11 19 12 . . . 23 9 4 . 1 . . . . . 20 . . . . Allies Corrupted 1 | . . . . . . 1 . . . . . . . . . . . . . . . . . . . . . . Allies Melted 1 | . . . . . . . . . . . . . 1 . . . . . . . . . . . . . . . Intel | -11 -10 -10 -9 -9 -8 -7 -7 -7 -7 -7 -7 -6 -6 -6 -6 -6 -6 -5 -5 -5 -5 -4 -4 -4 -4 -3 -3 -2 ------- Run | Yrd Mat Min Mat Min Mat Fac Was Fac Low Low Dat Pro Fac Ext Cet Arc Hub Fac Upp Upp Zhi Pro Fac Arm Lab Res Tes Res Active Infowar (turns) 12684 | 21 509 . 105 366 160 511 198 209 562 340 35 248 611 1140 724 337 25 719 598 705 178 305 601 1144 460 805 495 573 Optics 3955 | . . . . . 157 86 . . . . . . . . . . . . . . . . 235 1144 460 805 495 573 Sensors 11309 | . . . . . . 421 198 209 562 340 35 248 611 1140 724 337 25 719 598 705 178 305 593 1132 460 805 495 469 Seismic 1251 | 21 509 . 105 366 160 90 . . . . . . . . . . . . . . . . . . . . . . Cloaking 541 | . . . . . . . . . . . . . . . . . . . . . . . . . . 49 31 461 Jamming 7364 | . . . . . . 72 198 87 34 11 11 78 197 103 . 180 25 641 598 705 178 305 601 1121 359 805 495 560 ECM 166 | . . . . . 113 52 . . . . . . . 1 . . . . . . . . . . . . . . Robot Analysis Total 11 | . 4 . . . . . . . . . . . . . . . . 1 . . 4 . . 1 . 1 . . Derelict Logs Recovered 11 | . . 2 . 1 . . . . 3 2 . 1 . . . . . . . 1 . 1 . . . . . . Drone Launches 7 | . . . . . . . . . . . . . . 4 . . . . . . . . . . 1 . . 2 Drone Recoveries 5 | . . . . . . . . . . . . . . 4 . . . . . . . . . . 1 . . . Exploration | -11 -10 -10 -9 -9 -8 -7 -7 -7 -7 -7 -7 -6 -6 -6 -6 -6 -6 -5 -5 -5 -5 -4 -4 -4 -4 -3 -3 -2 ------------- Run | Yrd Mat Min Mat Min Mat Fac Was Fac Low Low Dat Pro Fac Ext Cet Arc Hub Fac Upp Upp Zhi Pro Fac Arm Lab Res Tes Res Turns Passed 15657 | 104 1396 480 1628 366 160 511 198 209 562 340 35 248 611 1140 724 337 25 719 598 705 178 305 601 1144 460 805 495 573 Spaces Moved 19743 | 35 712 261 1006 853 358 1318 276 514 1175 825 114 716 1065 913 373 264 49 1307 828 673 252 436 1089 1243 312 1414 471 891 Core . | . . . . . . . . . . . . . . . . . . . . . . . . . . . . . Treads 1747 | 35 712 261 739 . . . . . . . . . . . . . . . . . . . . . . . . . Legs . | . . . . . . . . . . . . . . . . . . . . . . . . . . . . . Wheels . | . . . . . . . . . . . . . . . . . . . . . . . . . . . . . Hover 9115 | . . . . . . . . . . . . . . . . 150 49 1307 828 673 252 436 1089 1243 312 1414 471 891 Flight 8881 | . . . 267 853 358 1318 276 514 1175 825 114 716 1065 913 373 114 . . . . . . . . . . . . Fastest Speed 22 | 160 160 160 32 34 29 26 26 26 26 22 26 22 23 23 27 29 36 36 38 38 34 34 34 34 34 32 40 40 Average Speed 45 | 160 160 160 126 34 29 26 26 26 26 25 26 25 23 25 30 37 36 39 38 88 50 34 38 36 34 37 41 43 Slowest Speed 240 | 160 160 160 240 34 29 32 26 26 100 26 26 26 26 27 104 52 40 100 40 96 96 34 95 106 34 41 102 181 Overloaded Moves . | . . . . . . . . . . . . . . . . . . . . . . . . . . . . . Propulsion Burnouts . | . . . . . . . . . . . . . . . . . . . . . . . . . . . . . Robots Hopped 61 | . . . 1 8 8 22 1 4 . . 1 7 3 6 . . . . . . . . . . . . . . Potential Cave-ins 4 | . . . . . . . . . 2 . . . . . . . . . . . . 2 . . . . . . Cave-ins Triggered . | . . . . . . . . . . . . . . . . . . . . . . . . . . . . . Teleports 1 | . . . . . . . . . . . . . . . . . . . . . . . . . . . 1 . Exploration Rate (%) 61 | 4 98 51 86 99 40 46 96 13 99 81 77 78 17 85 89 87 6 37 79 73 60 64 35 59 95 28 70 33 Regions Visited 28 Branch Regions 17 Pre-discovered Areas 6 | . . 1 . 1 . . . . . . 1 . . . . . . . . . 3 . . . . . . . Known Exits Taken 21 | . . . . . 1 . . 1 1 1 1 1 1 1 1 1 1 1 1 1 1 1 1 1 1 1 1 . Unknown Exits Taken 5 | 1 1 1 1 1 . . . . . . . . . . . . . . . . . . . . . . . . Scrap Searched 21 | . . 1 . 2 . . . . 4 4 . 3 . . . . . . 2 1 . 4 . . . . . . Spaces Dug 312 | . 1 . 16 1 5 8 . 1 3 7 . 7 21 4 . 1 1 20 23 10 . 7 35 41 . 39 34 27 Terrain Destroyed 414 | . 8 . 24 1 5 8 1 1 4 9 . 7 21 6 1 1 1 20 28 37 . 8 38 80 . 41 35 29 Melee 213 | . 1 . 5 1 4 8 . 1 3 3 . 6 20 3 . 1 1 18 4 5 . 3 26 26 . 25 26 23 Projectile 111 | . . . 1 . 1 . 1 . 1 6 . 1 1 3 1 . . 2 24 5 . 5 12 16 . 16 9 6 AOE 90 | . 7 . 18 . . . . . . . . . . . . . . . . 27 . . . 38 . . . . Terrain Rammed . | . . . . . . . . . . . . . . . . . . . . . . . . . . . . . Walls Destroyed . | . . . . . . . . . . . . . . . . . . . . . . . . . . . . . Machines Disabled . | . . . . . . . . . . . . . . . . . . . . . . . . . . . . . Actions | -11 -10 -10 -9 -9 -8 -7 -7 -7 -7 -7 -7 -6 -6 -6 -6 -6 -6 -5 -5 -5 -5 -4 -4 -4 -4 -3 -3 -2 --------- Run | Yrd Mat Min Mat Min Mat Fac Was Fac Low Low Dat Pro Fac Ext Cet Arc Hub Fac Upp Upp Zhi Pro Fac Arm Lab Res Tes Res Total 24783 | 60 847 310 1235 916 387 1428 388 575 1399 925 116 759 1376 1681 817 462 53 1441 1063 737 277 575 1219 1837 641 1589 680 990 Wait 3530 | 3 44 22 87 64 20 82 101 59 204 75 1 40 275 567 342 156 4 64 176 24 1 127 61 383 289 88 144 27 Move 19597 | 35 711 260 1003 836 342 1277 273 505 1174 824 111 702 1058 900 372 263 48 1306 827 672 251 435 1088 1242 311 1413 469 889 Hop 56 | . . . 1 8 7 19 1 4 . . 1 6 3 6 . . . . . . . . . . . . . . Pick Up 74 | 1 8 4 11 1 1 4 . . 2 . . 1 2 3 1 2 . 8 3 . 2 . 5 7 2 6 . . Fast Attach 70 | 1 4 1 7 . 2 4 1 1 . 3 . 1 1 1 2 5 . 2 . 2 1 . 3 9 9 3 4 3 Attach 44 | . 1 1 7 . 1 1 . 1 . . . . 2 2 . 1 . 3 . 1 1 . 2 3 3 3 2 9 Detach 29 | . . . 4 . . 1 . . . . . . 1 . 3 . . 1 . 1 . . 1 3 4 1 2 7 Swap 120 | 3 6 3 15 3 2 4 . . 2 . 2 . 5 5 5 6 . 9 10 1 4 . 7 11 2 7 6 2 Drop 125 | 4 2 7 26 2 1 5 1 . 1 1 . 2 4 2 4 6 . 5 2 2 2 . 9 12 8 9 4 4 Fire 317 | 12 63 7 58 . 3 . 10 . 4 16 . 1 1 12 5 1 . 6 25 9 . 5 12 22 2 21 10 12 Melee 441 | . 1 . 11 2 8 16 1 5 11 6 . 6 24 30 9 22 1 37 12 25 15 8 30 39 11 38 38 35 Ram . | . . . . . . . . . . . . . . . . . . . . . . . . . . . . . Kick . | . . . . . . . . . . . . . . . . . . . . . . . . . . . . . Crush 18 | 1 7 5 5 . . . . . . . . . . . . . . . . . . . . . . . . . Escape Stasis 26 | . . . . . . 15 . . . . . . . 8 . . . . . . . . . . . . 1 2 Rewire 218 | . . . . . . . . . 1 . . . . 110 1 . . . . . . . . 106 . . . . Trap 10 | . . . . . . . . . . . 1 . . . . . . . 8 . . . 1 . . . . . Miscellaneous 108 | . . . . . . . . . . . . . . 35 73 . . . . . . . . . . . . . Route ------- -11/Scrapyard -10/Materials (discovered 6 exits: *Mat x3 / *Min x2 / [*Sub]) -10/Mines -9/Materials (discovered 6 exits: *Mat x3 / *Min / *Sto x2) -9/Mines (discovered 3 exits: *Mat x2 / [*Exi]) -8/Materials (discovered 3 exits: *Fac x3) -7/Factory (discovered 2 exits: *Fac x2) -7/Waste -7/Factory -7/Lower Caves -7/Lower Caves (discovered 2 exits: *Fac / *Dat) -7/Data Miner -6/Proximity Caves -6/Factory -6/Extension (discovered 2 exits: *Fac / *Cet) -6/Cetus (discovered 2 exits: *Fac / *Arc) -6/Archives (discovered 3 exits: *Fac / *Hub x2) -6/Hub_04(d) -5/Factory (discovered 6 exits: *Fac x4 / *Upp x2) -5/Upper Caves -5/Upper Caves (discovered 2 exits: *Fac / *Zhi) -5/Zhirov -4/Proximity Caves -4/Factory (discovered 5 exits: *Res x2 / *Upp x2 / *Arm) -4/Armory (discovered 3 exits: Res x2 / *Lab) -4/Lab -3/Research (discovered 4 exits: Res x2 / *Tes x2) -3/Testing -2/Research (discovered 2 exits: *Qua x2) History --------- Turn | Location | Event 30 | -11/Scrapyard | Discovered new exit (range 3) 105 | -11/Scrapyard | Entered Materials 322 | -10/Materials | Build established: Mutant 417 | -10/Materials | Discovered new exit (range 7) 592 | -10/Materials | Discovered new exit (range 16) 858 | -10/Materials | Central database locked down 1038 | -10/Materials | Discovered new exit (range 15) 1109 | -10/Materials | Repaired Lgt. Treads 1185 | -10/Materials | Discovered new exit (range 10) 1341 | -10/Materials | Discovered new exit (range 8) 1474 | -10/Materials | Discovered new exit (range 8) 1501 | -10/Materials | Entered Mines 1616 | -10/Mines | Met a Derelict who couldn't figure out how to use a Trap Extractor 1735 | -10/Mines | Discovered new exit (range 12) 1740 | -10/Mines | Learned Materials garrison access intel 1766 | -10/Mines | Assembled infested the area 1788 | -10/Mines | Core integrity fell below 50% 1839 | -10/Mines | Joined a pair of Derelicts in attacking an 0b10 outpost 1938 | -10/Mines | Learned location of Storage (-9) 1981 | -10/Mines | Entered Materials 1981 | -9/Materials | Evolved 2 slots: Propulsion x1, Utility x1 1982 | -9/Materials | Identified exit to Storage 2189 | -9/Materials | Build established: Scavenger-Mutant 2220 | -9/Materials | Discovered new exit (range 16) 2461 | -9/Materials | Discovered new exit (range 14) 3115 | -9/Materials | Discovered new exit (range 13) 3175 | -9/Materials | Discovered exit to Storage (range 15) 3255 | -9/Materials | Discovered new exit (range 13) 3366 | -9/Materials | Learned Storage trap positions 3438 | -9/Materials | Learned location of 3 exits from Materials 3609 | -9/Materials | Entered Mines 3623 | -9/Mines | YI-UF0 nonchalantly dropped a Grenade Launcher on the ground 3674 | -9/Mines | Discovered new exit (range 8) 3738 | -9/Mines | Discovered new exit (range 14) 3873 | -9/Mines | Deemed a non-threat by the Exiles lab entrance 3873 | -9/Mines | Discovered new exit (range 5) 3886 | -9/Mines | Build established: Mutant 3892 | -9/Mines | Found the Drone Emporium 3894 | -9/Mines | Found Prototype Device 3894 | -9/Mines | Identified Splice Drone Bay 3975 | -9/Mines | Entered Materials 3975 | -8/Materials | Evolved 2 slots: Propulsion x1, Utility x1 3976 | -8/Materials | Identified exit to Factory 3977 | -8/Materials | Loaded intel: 1 garrison access location 4014 | -8/Materials | Central database locked down 4135 | -8/Materials | Entered Factory 4135 | -7/Factory | Evolved 2 slots: Propulsion x1, Utility x1 4285 | -7/Factory | Build established: Sprinter 4339 | -7/Factory | Discovered new exit (range 8) 4341 | -7/Factory | Identified exit to Factory 4473 | -7/Factory | Discovered exit to Factory (range 11) 4646 | -7/Factory | Sucked down chute 4646 | -7/Factory | Entered Waste 4647 | -7/Waste | Joined by Warlord forces that had cleared the area 4738 | -7/Waste | Discovered new exit (range 12) 4744 | -7/Waste | Identified exit to Factory 4844 | -7/Waste | Entered Factory 4844 | -7/Factory | Accompanied by 20 allies 4846 | -7/Factory | Garrison activated, responded to threat 4866 | -7/Factory | Discovered new exit (range 3) 4866 | -7/Factory | Identified exit to Lower Caves 5053 | -7/Factory | Entered Lower Caves 5053 | -7/Lower Caves | Accompanied by 12 allies 5068 | -7/Lower Caves | Learned Factory terminal intel 5274 | -7/Lower Caves | Attracted the attention of an 0b10 base 5276 | -7/Lower Caves | Learned Extension emergency access door positions 5276 | -7/Lower Caves | Learned location of 1 exit from Research 5276 | -7/Lower Caves | Learned location of 1 exit from Factory 5313 | -7/Lower Caves | Lost 3 allies 5332 | -7/Lower Caves | Identified exit to Lower Caves 5335 | -7/Lower Caves | Learned 12 Factory zone layouts 5341 | -7/Lower Caves | Entered an active Warlord outpost 5344 | -7/Lower Caves | Learned Extension garrison access intel 5344 | -7/Lower Caves | Learned Research stockpile data 5344 | -7/Lower Caves | Learned Extension trap positions 5344 | -7/Lower Caves | Learned Research trap positions 5344 | -7/Lower Caves | Learned 8 Research zone layouts 5344 | -7/Lower Caves | Learned location of 1 exit from Research 5615 | -7/Lower Caves | Entered another Lower Caves area 5615 | -7/Lower Caves | Accompanied by 9 allies 5639 | -7/Lower Caves | Discovered exit to Factory (range 7) 5646 | -7/Lower Caves | Found Alien Artifact 5646 | -7/Lower Caves | Identified Core Expander 5646 | -7/Lower Caves | Installed Core Expander, added new Propulsion slot 5806 | -7/Lower Caves | Spotted B-75 Beast 5826 | -7/Lower Caves | Lost 4 allies 5856 | -7/Lower Caves | Allies destroyed B-75 Beast 5938 | -7/Lower Caves | Attracted the attention of an 0b10 outpost 5944 | -7/Lower Caves | Learned Factory machine intel 5948 | -7/Lower Caves | Identified exit to Data Miner 5955 | -7/Lower Caves | Entered Data Miner 5955 | -7/Data Miner | Discovered new exit (range 6) 5960 | -7/Data Miner | Met Data Miner 5966 | -7/Data Miner | Learned location of Section 7 (-2) 5966 | -7/Data Miner | Acquired the access code to Warlord's prototype stash 5971 | -7/Data Miner | Received God Mode back door access code from Data Miner 5979 | -7/Data Miner | Data Conduit disabled 5990 | -7/Data Miner | Identified exit to Proximity Caves 5990 | -7/Data Miner | Entered Proximity Caves 6023 | -6/Proximity Caves | Spotted B-75 Beast 6091 | -6/Proximity Caves | Learned Factory emergency access door positions 6206 | -6/Proximity Caves | Learned Research security intel 6206 | -6/Proximity Caves | Learned Factory emergency access door positions 6236 | -6/Proximity Caves | Discovered exit to Factory (range 8) 6238 | -6/Proximity Caves | Entered Factory 6238 | -6/Factory | Evolved 2 slots: Propulsion x1, Utility x1 6239 | -6/Factory | Identified exit to Extension 6242 | -6/Factory | Loaded intel: 253 machine locations 6243 | -6/Factory | Loaded intel: 28 terminal locations 6313 | -6/Factory | Fabricated M-13 Machinist? 6320 | -6/Factory | Fabricated Nuclear Pulse Array? 6512 | -6/Factory | Fabricated Smartbomb Launcher (x1) 6849 | -6/Factory | Entered Extension 6850 | -6/Extension | Loaded intel: 18 trap records 6877 | -6/Extension | Rescued a captive Derelict 6879 | -6/Extension | Rescued a captive Derelict 6948 | -6/Extension | Rescued A7 6994 | -6/Extension | Local machine network offline 7355 | -6/Extension | Build established: Commander-Sprinter 7522 | -6/Extension | Spotted B-75 Beast 7541 | -6/Extension | Spotted B-75 Beast 7545 | -6/Extension | Allies destroyed B-75 Beast 7571 | -6/Extension | Destroyed B-75 Beast 7595 | -6/Extension | Lost 3 parts (2n1u) 7601 | -6/Extension | Lost 7 allies 7615 | -6/Extension | Rescued a captive Derelict 7794 | -6/Extension | Rescued a captive Derelict 7843 | -6/Extension | Rescued a captive Derelict 7869 | -6/Extension | Rescued a captive Derelict 7887 | -6/Extension | Discovered new exit (range 10) 7888 | -6/Extension | Discovered new exit (range 6) 7890 | -6/Extension | Identified exit to Cetus 7989 | -6/Extension | Entered Cetus 7989 | -6/Cetus | Accompanied by 13 allies (A7) 7994 | -6/Cetus | Acquired a Cetus Manufacturing Module code from A7 8010 | -6/Cetus | Spotted Cetus Guard 8012 | -6/Cetus | Spotted Cetus Guard 8012 | -6/Cetus | Spotted Cetus Guard 8022 | -6/Cetus | Spotted Cetus Guard 8024 | -6/Cetus | Allies destroyed Cetus Guard 8033 | -6/Cetus | Allies destroyed Cetus Guard 8038 | -6/Cetus | Allies destroyed Cetus Guard 8043 | -6/Cetus | Allies destroyed Cetus Guard 8067 | -6/Cetus | Started Cetus Manufacturing Module 8068 | -6/Cetus | Lost 8 allies 8092 | -6/Cetus | Manufactured an Enhanced Grunt 8096 | -6/Cetus | Escorted A7 to Cetus Mainframe 8117 | -6/Cetus | Manufactured an Enhanced Grunt 8142 | -6/Cetus | Manufactured an Enhanced Grunt 8167 | -6/Cetus | Manufactured an Enhanced Grunt 8192 | -6/Cetus | Manufactured an Enhanced Grunt 8241 | -6/Cetus | Cetus Manufacturing Module disabled 8465 | -6/Cetus | Discovered new exit (range 16) 8603 | -6/Cetus | Spotted Cetus Guard 8603 | -6/Cetus | Spotted Cetus Guard 8603 | -6/Cetus | Spotted Cetus Guard 8603 | -6/Cetus | Spotted Cetus Guard 8611 | -6/Cetus | Allies destroyed Cetus Guard 8612 | -6/Cetus | Allies destroyed Cetus Guard 8618 | -6/Cetus | Allies destroyed Cetus Guard 8618 | -6/Cetus | Discovered new exit (range 16) 8619 | -6/Cetus | Rewired Cetus Guard 8627 | -6/Cetus | Met Revision 17 8639 | -6/Cetus | Identified exit to Archives 8695 | -6/Cetus | Murdered A7 8697 | -6/Cetus | Extracted ID and sensor layout for unrecognized location from A7's data core 8701 | -6/Cetus | Found Prototype Protection 8701 | -6/Cetus | Identified Med. Regenerative Plating 8713 | -6/Cetus | Entered Archives 8713 | -6/Archives | Accompanied by 9 allies 8760 | -6/Archives | Discovered new exit (range 15) 8762 | -6/Archives | Unable to access archive contents 8783 | -6/Archives | Lost 4 allies 8814 | -6/Archives | Discovered new exit (range 15) 8845 | -6/Archives | Discovered new exit (range 15) 8922 | -6/Archives | Identified exit to Hub_04(d) 9050 | -6/Archives | Entered Hub_04(d) 9050 | -6/Hub_04(d) | Accompanied by 5 allies 9057 | -6/Hub_04(d) | Discovered new exit (range 14) 9061 | -6/Hub_04(d) | Network Hub disabled 9068 | -6/Hub_04(d) | Spotted Lightning 9069 | -6/Hub_04(d) | Spotted Lightning 9072 | -6/Hub_04(d) | Identified exit to Factory 9075 | -6/Hub_04(d) | Entered Factory 9075 | -5/Factory | Evolved 2 slots: Power x1, Utility x1 9104 | -5/Factory | Lost 3 allies 9113 | -5/Factory | Build established: Scavenger-Mutant 9496 | -5/Factory | Identified exit to Factory 9496 | -5/Factory | Identified exit to Upper Caves 9665 | -5/Factory | Spotted B-75 Beast 9756 | -5/Factory | Fabricated Cld. Aerolev Unit? 9794 | -5/Factory | Entered Upper Caves 9899 | -5/Upper Caves | Attacked by a delusional Derelict stockpiling parts 10273 | -5/Upper Caves | Discovered new exit (range 5) 10275 | -5/Upper Caves | Identified exit to Upper Caves 10298 | -5/Upper Caves | Spotted B-75 Beast 10392 | -5/Upper Caves | Entered another Upper Caves area 10394 | -5/Upper Caves | Discovered exit to Factory (range 5) 10410 | -5/Upper Caves | Spotted B-75 Beast 10580 | -5/Upper Caves | Learned location of 2 exits from Factory 10981 | -5/Upper Caves | Discovered new exit (range 13) 10993 | -5/Upper Caves | Identified exit to Zhirov 11097 | -5/Upper Caves | Entered Zhirov 11097 | -5/Zhirov | Discovered new exit (range 3) 11116 | -5/Zhirov | Met Zhirov 11132 | -5/Zhirov | Learned location of Quarantine (-2) 11132 | -5/Zhirov | Learned location of Testing (-3) 11132 | -5/Zhirov | Learned location of Command (-1) 11142 | -5/Zhirov | Zhirov requested help retrieving the SGEMP Prototype 11162 | -5/Zhirov | Found Alien Artifact 11162 | -5/Zhirov | Identified Integrated Dissipator 11162 | -5/Zhirov | Installed Integrated Dissipator, increased core heat dissipation (+20) 11171 | -5/Zhirov | Found Alien Artifact 11275 | -5/Zhirov | Identified exit to Proximity Caves 11275 | -5/Zhirov | Entered Proximity Caves 11368 | -4/Proximity Caves | Learned Research terminal intel 11576 | -4/Proximity Caves | Discovered exit to Factory (range 15) 11580 | -4/Proximity Caves | Entered Factory 11580 | -4/Factory | Evolved 2 slots: Utility x1, Weapon x1 11581 | -4/Factory | Identified exit to Research 11582 | -4/Factory | Identified exit to Upper Caves 11615 | -4/Factory | Found Quantum Capacitor 11677 | -4/Factory | Identified exit to Armory 11901 | -4/Factory | Allied Derelicts emerged from ambush trap array 12148 | -4/Factory | Central database locked down 12181 | -4/Factory | Entered Armory 12182 | -4/Armory | Met VL-GR5, who suggested a friendly competition 12210 | -4/Armory | Spotted B-86 Titan 12242 | -4/Armory | Assisted by bots powering up and referring to "LRC-V3" 12438 | -4/Armory | Fabricated Assault Drone Bay? 13106 | -4/Armory | Build established: Commander-Ninja 13251 | -4/Armory | Discovered new exit (range 3) 13253 | -4/Armory | Identified exit to Lab 13325 | -4/Armory | Entered Lab 13325 | -4/Lab | Discovered exit to Research (range 9) 13335 | -4/Lab | Hidden lab's door opened automatically 13335 | -4/Lab | Sensor layout match revealed 13336 | -4/Lab | Gained access to the hidden lab's interior 13550 | -4/Lab | Found Prototype Energy Cannon 13550 | -4/Lab | Identified Potential Cannon 13555 | -4/Lab | Found Prototype Device 13555 | -4/Lab | Identified AEGIS Remote Shield 13559 | -4/Lab | Found Prototype Hackware 13617 | -4/Lab | Build established: Scavenger-Ninja 13650 | -4/Lab | Found Core Expander 13650 | -4/Lab | Installed Core Expander, added new Utility slot 13654 | -4/Lab | Identified Deep Network Scanner 13660 | -4/Lab | Found Alien Artifact 13660 | -4/Lab | Identified Integrated Reactor 13660 | -4/Lab | Installed Integrated Reactor, increased core energy generation (+10) 13695 | -4/Lab | Found Prototype Energy Cannon 13695 | -4/Lab | Identified Warp Cannon 13724 | -4/Lab | Unable to decrypt terminal 13785 | -4/Lab | Entered Research 13785 | -3/Research | Evolved 2 slots: Propulsion x1, Utility x1 13786 | -3/Research | Identified exit to Testing 13786 | -3/Research | Identified exit to Research 13788 | -3/Research | Loaded intel: 67 trap records 13791 | -3/Research | Loaded intel: 24 terminal locations 13940 | -3/Research | Build established: Hacker-Ninja 14066 | -3/Research | Repaired Com. Particle Reactor 14388 | -3/Research | Central database locked down 14590 | -3/Research | Entered Testing 14645 | -3/Testing | Found Prototype Energy Cannon 14645 | -3/Testing | Identified Hpw. Disruptor Cannon 14728 | -3/Testing | Found Prototype Energy Gun 14728 | -3/Testing | Identified Tachyon Dispersion Ray 14876 | -3/Testing | Identified Transdimensional Reconstructor 14876 | -3/Testing | Warped through subspace 15080 | -3/Testing | Discovered exit to Research (range 4) 15085 | -3/Testing | Entered Research 15085 | -2/Research | Evolved 2 slots: Power x1, Utility x1 15196 | -2/Research | Identified exit to Quarantine 15416 | -2/Research | Spotted B-90 Cyclops 15502 | -2/Research | Spotted B-90 Cyclops 15551 | -2/Research | Spotted B-90 Cyclops 15585 | -2/Research | Search patrols dispatched 15630 | -2/Research | Spotted B-90 Cyclops 15643 | -2/Research | System corruption reached 10% 15645 | -2/Research | Core integrity fell below 50% 15654 | -2/Research | Core integrity fell below 20% 15658 | -2/Research | Destroyed by H-88 Terminator with Heavy Machine Gun Last Messages --------------- 15644_ Penetrated by Slug. 15644_ Knocked back. 15645_ Acquired 13 matter. 15645_ Imp. Transmission Jammer destroyed. 15646_ Penetrated by Slug. 15648_ Slug penetrates Wall. 15649_ ALERT: Potential suspicious activity detected, Programmers report to Research Zone 8A. 15649_ Slug penetrates Wall. 15650_ Dropped Com. Particle Reactor. 15651_ Slug penetrates Wall. 15652_ &HXFXA9KSPVOCZ,UDNXT1116/MD6 15652_ Slug penetrates Wall. 15655_ Slug penetrates H-88 Terminator. 15657_ R-10 Processor collects Adv. Point Defense System. 15657_ Penetrated by Slug. 15657_ Deep Network Scanner destroyed. 15658_ Penetrated by Slug. 15658_ Gyrokinetic Inverter+ destroyed. 15658_ Penetrated by Slug. Map ----- +----------------------------------------------------+ | ?????????????????????????????????????????????????? | | ?????????????????????????????????????????????????? | | ?????????????????????????????????????????????????? | | ?????????????????????????????????????????????????? | | ?????????????????????????????????????????????????? | | ????????????????????????????????????????#+##?????? | | ??????????????????????????????????????? ????? | | ??????????????????????????????????????? ????? | | ??????????????????????????????????????? ????? | | ??????????????????????????????????????? ""???? | | ??????????????????????????????????????? """??? | | ???????????????????????????????????????# """??? | | ???????????????????????????????######### ? | | ??????????????????????#####????# ! ## ? | | ?????????????????????? ????+ ! ## | | ??????????????????????? #????# ## """ | | ??????????????????????? #????# ## """ | | ??????????????????????? +????# * ## """ | | ??????????????????????? #????# ## | | ???????????????????????# #????# ## | | ???????????????????????# #????# # | | ???????????????????????# #????# # """ | | ???????????????????????# #????# # """ | | ???????????????????????# #????# * " """ | | ???????????????????????# ######s # | | ???????????????????????+ @ sss ss # | | ???????????????????????# #######" | | ???????????????????????# p % "" | | ???????????????????????# = pp """ | | ???????????????????????# pph p m "" | | ???????????????????????# p h!! "" ghh | | ???????????????????????# !!! "" !! | | ?????????????????????### A!! T" gR!! | | ????????????????????? BB "" "!"" | | ???????????????????? ### BB "" R ""F"" | | ?????????????????????# u """ | | ?????????????????????# u | | ?????????????????????### | | ???????????????????????# ##### | | ????????????????????? u#?####+###### | | ?????????????????????### #?# # | | ???????????????????????# #?# ### | | ???????????????????????# ##### #?# #?? | | ???????????????????????# ????# #?# #?? | | ???????????????????????# ????# #?# #?? | | ???????????????????????# ????# #?# "" "" #?? | | ???????????????????????# ????# #?# ""R"" #?? | | ???????????????????????? ????# ### """" #?? | | ?????????????????????????????# "##########?? | | ?????????????????????????????# ##??????????? | +----------------------------------------------------+ Best States ------------- Heat Dissipation 107 Energy Generation 66 Energy Capacity 360 Matter Stores 300 Matter Capacity 300 Sight Range 23 Robot Scan Range 16 Terrain Scan Density 10 ECM Strength 1 Jamming Range 14 Cloak Strength 4 Armor Coverage 225 Core Shielding 20 Propulsion Shielding 66 Utility Shielding 90 Evasion (%) 69 Core Analysis 6 Recoil Reduction 3 Offensive Hacking 25 Defensive Hacking 14 Authchip Count 1 Trap Extractor Capacity 6 Item Schematics ----------------- Imp. Flight Unit | -9/Materials | Scanalyzed Imp. VTOL Module | -7/Factory | Hacked Combat Drone Bay | -7/Data Miner | Free Lgt. Regenerative Plating | -7/Data Miner | Free Cld. Aerolev Unit | -7/Data Miner | Free Gravity Neutralizer | -7/Data Miner | Free Force Rifle | -7/Data Miner | Free Hvy. Treads | -7/Data Miner | Free Adv. Shield Generator | -7/Data Miner | Free Wave Gun | -7/Data Miner | Free Nuclear Pulse Array | -7/Data Miner | Free Linear Gravjet | -7/Data Miner | Free Assault Drone Bay | -5/Zhirov | Free Exp. Heat Sink | -5/Zhirov | Free Exp. Optical Array | -5/Zhirov | Free Imp. Arc Thrower | -5/Zhirov | Free Lgt. Quantum Reactor | -3/Research | Hacked Robot Schematics ------------------ M-13 Machinist | -9/Materials | Hacked W-25 Informer | -7/Data Miner | Free M-22 Extractor | -7/Data Miner | Free G-47 Trooper | -7/Data Miner | Free A-15 Conveyor | -7/Data Miner | Free S-27 Virus | -7/Data Miner | Free Fabricated ------------ M-13 Machinist | x1 | -6/Factory | Authchip Nuclear Pulse Array | x1 | -6/Factory Smartbomb Launcher | x1 | -6/Factory | Preloaded Cld. Aerolev Unit | x1 | -5/Factory | Authchip Assault Drone Bay | x1 | -4/Armory Repaired ---------- Lgt. Treads | 27% | -10/Materials Com. Particle Reactor | 25% | -3/Research Studied --------- Lgt. Ion Engine | -9/Materials | Hacked Plasma Cutter | -9/Materials | Hacked Cesium-ion Thruster | -8/Materials | Hacked Mic. Nuclear Core | -7/Factory | Hacked Great Maul | -7/Factory | Hacked Great Axe | -7/Factory | Hacked VTOL Module | -6/Factory | Hacked Gravmag System | -4/Factory | Hacked Mic. Antimatter Reactor | -3/Research | Hacked Antigrav Array | -3/Testing | Hacked Imp. Antigrav System | -3/Testing | Hacked Gyrokinetic Inverter | -2/Research | Hacked Enh. Force Lance | -2/Research | Hacked Hyp. Railgun | -2/Research | Hacked Cmb. Gravmag System | -2/Research | Hacked Enh. Nova Cannon | -2/Research | Hacked Alien Tech Used ----------------- Core Expander Integrated Dissipator Integrated Reactor Transdimensional Reconstructor Achievements -------------- Anyone Home? Beloved Challenges ------------ None Game ------ Seed WardroneRegenerativeMantle Manual? 0 Play Time 03:47:09 Cumulative 272.1 hours Start 2026.01.02 @ 14:56:57 End 2026.01.02 @ 20:09:11 Sessions 1 Manual Loads 0 Difficulty Rogue Special Mode None Game No. 202 Rogue 202 Adventurer 0 Explorer 0 Win Type - Total 9 Types 5/1/1/2/0/0/0/0/0/0 Lore% 79 Gallery% 72 Achievement% 59 Wizard Run 0 Options --------- Layout 0 ASCII 0 Keyboard 1 Movement Numpad Keybinds 0 Fullscreen 1 Font 24/Terminus Map View 76x50 Zoom Use 0% Tactical HUD 1 Map Filters NONE Filters NONE Steam 1 RUN: 1e174bbe-db06-4de5-b9e9-df32fde8cdbf